bitfinex-derivatives/quotes_BNBF0:USTF0_20241225
["timestamp","ask_amount","ask_price","bid_price","bid_amount"]
[1735114557985,0.28445051,703.11,702.12,1.06516007]
[1735114559492,0.28445051,703.11,702.15,1.06516007]
[1735114560393,0.28445051,703.11,702.04,0.889]
[1735114560394,0.28445051,703.11,702.19,1.06516007]
[1735114561392,0.28445051,703.11,702.22,1.06516007]
[1735114562392,0.28445051,703.11,702.24,1.06516007]
[1735114563389,0.28445051,703.11,702.25,1.06516007]
[1735114564596,0.28445051,703.11,702.28,1.06516007]
[1735114565596,0.28445051,703.11,702.31,1.06516007]
[1735114566295,0.28445051,703.11,702.26,0.764]
[1735114567198,0.28445051,703.11,702.37,1.06248921]
[1735114568298,0.28445051,703.11,702.26,0.764]
[1735114568299,0.28445051,703.11,702.34,1.06248921]
[1735114569105,0.28445051,703.11,702.31,1.06248921]
[1735114570198,0.28445051,703.11,702.29,1.06248921]
[1735114575302,0.28445051,703.11,702.27,1.06248921]
[1735114576509,0.28445051,703.11,702.3,1.06248921]
[1735114577902,0.28445051,703.11,702.35,1.06248921]
[1735114579310,0.28445051,703.11,702.39,1.06248921]
[1735114579803,0.28445051,703.11,702.4,0.729]
[1735114580210,0.28445051,703.11,702.41,1.06248921]
[1735114581512,0.28445051,703.11,702.4,0.729]
[1735114588411,0.28445051,703.11,702.4,1.79148921]
[1735114589315,0.28445051,703.11,702.42,1.06248921]
[1735114590716,0.28445051,703.11,702.4,0.729]
[1735114591811,0.28445051,703.11,702.4,1.79148921]
[1735114592817,0.28445051,703.11,702.41,1.06248921]
[1735114594316,0.28445051,703.11,702.52,1.06248921]
[1735114595918,0.28445051,703.11,702.63,1.06248921]
[1735114597516,0.28445051,703.11,702.62,1.06248921]
[1735114598710,0.28445051,703.11,702.61,1.06248921]
[1735114599616,0.28445051,703.11,702.64,1.06248921]
[1735114600919,0.28445051,703.11,702.47,1.06248921]
[1735114602820,1.06348762,704.28,702.47,1.06248921]
[1735114603021,0.28398602,704.26,702.47,1.06248921]
[1735114603213,0.26147901,704.25,702.47,1.06248921]
[1735114603416,0.28399812,704.23,702.47,1.06248921]
[1735114603618,0.26147901,704.22,702.47,1.06248921]
[1735114603821,0.28401022,704.2,702.47,1.06248921]
[1735114604022,0.26148034,704.19,702.47,1.06248921]
[1735114604417,0.26148034,704.19,702.46,1.06248921]
[1735114605723,0.26148034,704.19,702.45,1.06248921]
[1735114606319,0.28402232,704.17,702.45,1.06248921]
[1735114606519,0.26148034,704.16,702.45,1.06248921]
[1735114606719,0.28403442,704.14,702.45,1.06248921]
[1735114606924,0.26148034,704.13,702.46,1.06248921]
[1735114607225,0.26148034,704.13,702.46,2.12648921]
[1735114607226,0.28404652,704.11,702.46,2.12648921]
[1735114607420,0.26148034,704.1,702.46,2.12648921]
[1735114607619,0.28405862,704.08,702.46,2.12648921]
[1735114607823,0.26148034,704.07,702.46,2.12648921]
[1735114608019,0.28407073,704.05,702.46,2.12648921]
[1735114608222,0.26148034,704.04,702.46,2.12648921]
[1735114608527,0.28408283,704.02,702.46,2.12648921]
[1735114608723,0.26148034,704.01,702.46,2.12648921]
[1735114608925,0.28409494,703.99,702.46,2.12648921]
[1735114609124,0.26148034,703.98,702.46,2.12648921]
[1735114609327,0.28409494,703.99,702.46,2.12648921]
[1735114609526,0.26146567,703.98,702.46,2.12648921]
[1735114610023,0.26146567,703.98,702.51,1.06248921]
[1735114611425,0.26146567,703.98,702.46,1.064]
[1735114611426,0.26146567,703.98,702.66,1.06248921]
[1735114612227,0.28409494,703.99,702.66,1.06248921]
[1735114612523,0.26146099,703.98,702.62,1.06248921]
[1735114612728,0.26146099,703.98,702.46,1.064]
[1735114613822,0.28410705,703.96,702.65,1.06445306]
[1735114614129,0.26146099,703.95,702.65,1.06445306]
[1735114615130,0.2614655,703.94,702.65,1.06445306]
[1735114615324,0.2614655,703.93,702.65,1.06445306]
[1735114615630,0.2614655,703.92,702.65,1.06445306]
[1735114615830,0.2614655,703.91,702.65,1.06445306]
[1735114616030,0.2614655,703.9,702.65,1.06445306]
[1735114616225,0.64427198,704.26,702.65,1.06445306]
[1735114616226,0.5456008,703.89,702.65,1.06445306]
[1735114616430,0.2614655,703.88,702.65,1.06445306]
[1735114617331,0.2614655,703.88,702.64,1.06445306]
[1735114618530,0.2614655,703.88,702.67,1.06445306]
[1735114620530,0.26144985,703.87,702.67,1.06445306]
[1735114620729,0.2841353,703.89,702.64,1.06445306]
[1735114620730,0.26144985,703.86,702.64,1.06445306]
[1735114620929,0.26144985,703.85,702.64,1.06445306]
[1735114621130,0.26144985,703.84,702.64,1.06445306]
[1735114621425,0.26144985,703.83,702.64,1.06445306]
[1735114621630,0.26144985,703.82,702.64,1.06445306]
[1735114621831,0.2841353,703.89,702.64,1.06445306]
[1735114622031,0.2841353,703.89,702.65,1.06445306]
[1735114623133,0.2841353,703.89,702.61,1.06445306]
[1735114623526,0.26144347,703.88,702.61,1.06445306]
[1735114623833,0.26144347,703.88,702.46,1.064]
[1735114623834,0.26144347,703.88,702.59,1.06445306]
[1735114624530,0.26144347,703.88,702.57,1.06445306]
[1735114625635,0.26144347,703.88,702.69,1.06445306]
[1735114627735,0.2841353,703.89,702.69,1.06445306]
[1735114627937,0.2614691,703.88,702.71,1.06445306]
[1735114629841,0.2614691,703.88,702.63,1.06445306]
[1735114630533,0.261482,703.87,702.63,1.06445306]
[1735114630737,0.261482,703.86,702.62,1.06445306]
[1735114630937,0.261482,703.85,702.62,1.06445306]
[1735114631139,0.261482,703.84,702.62,1.06445306]
[1735114631342,0.261482,703.83,702.62,1.06445306]
[1735114631538,0.261482,703.82,702.62,1.06445306]
[1735114631737,0.2841353,703.89,702.62,1.06445306]
[1735114631738,0.261482,703.81,702.62,1.06445306]
[1735114631934,0.261482,703.8,702.54,1.06445306]
[1735114632141,0.261482,703.79,702.54,1.06445306]
[1735114632339,0.261482,703.78,702.54,1.06445306]
[1735114632639,0.261482,703.77,702.54,1.06445306]
[1735114632838,0.2841353,703.89,702.46,1.064]
[1735114632839,0.261482,703.76,702.63,1.06445306]
[1735114633139,0.2841353,703.89,702.63,1.06445306]
[1735114633438,0.26143182,703.88,702.63,1.06445306]
[1735114633940,0.2841353,703.89,702.63,1.06445306]
[1735114634149,0.26142673,703.88,702.73,1.06445306]
[1735114634936,0.26142673,703.88,702.72,1.06445306]
[1735114635934,0.26142673,703.88,702.76,1.06445306]
[1735114636137,0.26141351,703.87,702.76,1.06445306]
[1735114636338,0.2841353,703.89,702.77,0.703]
[1735114636538,0.26141437,703.88,702.77,0.703]
[1735114638442,0.28414741,703.86,702.77,0.703]
[1735114641741,0.28414741,703.86,702.77,1.76745306]
[1735114642643,0.28414741,703.86,702.86,1.06445306]
[1735114643846,0.28414741,703.86,702.84,1.06445306]
[1735114644857,0.28414741,703.86,702.8,1.06445306]
[1735114646949,0.28414741,703.86,702.77,0.703]
[1735114646950,0.28414741,703.86,702.81,1.06445306]
[1735114647946,0.28414741,703.86,702.77,0.703]
[1735114655354,0.28414741,703.86,702.56,1.06445306]
[1735114655752,0.26142585,703.85,702.56,1.06445306]
[1735114655956,0.26142585,703.85,702.57,1.06445306]
[1735114656454,0.26142585,703.85,702.58,0.907]
[1735114657657,0.28414741,703.86,702.58,0.907]
[1735114657850,0.26145226,703.85,702.58,0.907]
[1735114658450,0.28414741,703.86,702.58,0.907]
[1735114658657,0.26145468,703.85,702.58,0.907]
[1735114663357,0.26145507,703.84,702.58,0.907]
[1735114663558,0.26145507,703.83,702.58,0.907]
[1735114663853,0.26145507,703.82,702.58,0.907]
[1735114664053,0.26145507,703.81,702.58,0.907]
[1735114664258,0.26145507,703.8,702.58,0.907]
[1735114664552,0.26145507,703.79,702.58,0.907]
[1735114664758,0.26145507,703.78,702.58,0.907]
[1735114665058,0.26145507,703.77,702.58,0.907]
[1735114665259,0.26145507,703.76,702.58,0.907]
[1735114665558,0.26145507,703.75,702.58,0.907]
[1735114665860,0.26145507,703.74,702.58,0.907]
[1735114666059,0.26145507,703.73,702.58,0.907]
[1735114666253,0.26145507,703.72,702.58,0.907]
[1735114666456,0.26145507,703.71,702.58,0.907]
[1735114666757,0.26145507,703.7,702.58,0.907]
[1735114666952,0.26145507,703.69,702.58,0.907]
[1735114667153,0.26145507,703.68,702.58,0.907]
[1735114667458,0.26145507,703.67,702.58,0.907]
[1735114667658,0.26145507,703.66,702.58,0.907]
[1735114667856,0.28414741,703.86,702.58,0.907]
[1735114668057,0.26145664,703.85,702.58,0.907]
[1735114668956,0.28415952,703.83,702.58,0.907]
[1735114669156,0.26145664,703.82,702.58,0.907]
[1735114669754,0.28417163,703.8,702.58,0.907]
[1735114670054,0.26145664,703.79,702.58,0.907]
[1735114670856,0.28417163,703.8,702.58,0.907]
[1735114671063,0.28417163,703.8,702.59,1.06445306]
[1735114671762,0.28417163,703.8,702.6,1.06445306]
[1735114672062,0.26145686,703.79,702.6,1.06445306]
[1735114672258,0.28418375,703.77,702.6,1.06445306]
[1735114672456,0.26145686,703.76,702.6,1.06445306]
[1735114675262,0.26144319,703.75,702.6,1.06445306]
[1735114675461,0.26144319,703.74,702.62,1.06445306]
[1735114675658,0.26144319,703.73,702.62,1.06445306]
[1735114675860,0.26144319,703.72,702.62,1.06445306]
[1735114676060,0.26144319,703.71,702.62,1.06445306]
[1735114676262,0.54565521,703.7,702.62,1.06445306]
[1735114676458,0.26144319,703.69,702.62,1.06445306]
[1735114676664,0.26144319,703.69,702.63,1.06445306]
[1735114677863,0.26144319,703.69,702.62,1.06445306]
[1735114678961,0.26144319,703.69,702.64,1.06445306]
[1735114679762,0.26144319,703.69,702.61,1.06445306]
[1735114680065,0.26145877,703.68,702.61,1.06445306]
[1735114680266,0.26145877,703.67,702.61,1.06445306]
[1735114680467,0.26145877,703.66,702.61,1.06445306]
[1735114680667,0.26145877,703.65,702.61,1.06445306]
[1735114680966,0.26145877,703.64,702.61,1.06445306]
[1735114681167,0.26145877,703.64,702.58,0.907]
[1735114681168,0.26145877,703.69,702.62,1.06445306]
[1735114681367,0.26145877,703.68,702.62,1.06445306]
[1735114681564,0.26145877,703.67,702.62,1.06445306]
[1735114681867,0.26144772,703.66,702.62,1.06445306]
[1735114682068,0.26144772,703.65,702.62,1.06445306]
[1735114682271,0.26144772,703.64,702.66,1.06445306]
[1735114682465,0.26144772,703.69,702.66,1.06445306]
[1735114682666,0.28421202,703.7,702.66,1.06445306]
[1735114682866,0.26144881,703.69,702.66,1.06445306]
[1735114683367,0.26144881,703.69,702.69,1.06445306]
[1735114683764,0.28421202,703.7,702.69,1.06445306]
[1735114684570,0.28421202,703.7,702.5,1.06445306]
[1735114684571,0.28421202,703.7,702.74,1.06445306]
[1735114685671,0.28421202,703.7,702.79,1.06445306]
[1735114686774,0.28421202,703.7,702.8,1.06445306]
[1735114687677,0.28421202,703.7,702.81,1.06445306]
[1735114688472,0.28421202,703.7,702.82,1.06445306]
[1735114690876,0.28421202,703.7,702.83,1.06445306]
[1735114691976,0.28421202,703.7,702.81,1.06445306]
[1735114693075,0.28421202,703.7,702.78,1.06445306]
[1735114693882,0.28421202,703.7,702.72,1.06445306]
[1735114694481,0.28421202,703.7,702.7,0.924]
[1735114704790,0.28421202,703.7,702.62,1.06445306]
[1735114705089,0.28421202,703.7,702.63,1.06445306]
[1735114705885,0.28421202,703.7,702.64,1.061]
[1735114706889,0.28421202,703.7,702.83,1.06445306]
[1735114707993,0.28421202,703.7,702.85,1.06445306]
[1735114712395,0.28421202,703.7,702.9,1.06445306]
[1735114712794,0.28421202,703.7,702.65,0.77730826]
[1735114712795,0.28421202,703.7,702.93,1.06445306]
[1735114713499,0.28421202,703.7,702.91,1.06445306]
[1735114714596,0.28421202,703.7,702.92,1.06445306]
[1735114715798,0.28421202,703.7,702.98,1.06445306]
[1735114716490,0.28421202,703.7,703.0,1.06445306]
[1735114718999,0.28421202,703.7,702.65,0.77730826]
[1735114719000,0.28421202,703.7,703.01,1.06445306]
[1735114719899,0.28421202,703.7,702.99,1.06445306]
[1735114720900,0.28421202,703.7,702.98,1.06445306]
[1735114722001,0.28421202,703.7,702.97,1.06445306]
[1735114722300,0.28421202,703.7,702.99,0.973]
[1735114725305,0.28421202,703.7,702.99,2.03745306]
[1735114726397,0.28421202,703.7,703.0,1.06445306]
[1735114728998,0.28421202,703.7,702.99,0.973]
[1735114734104,0.28421202,703.7,702.9,1.06445306]
[1735114735306,0.28421202,703.7,702.91,1.138]
[1735114735507,0.28421202,703.7,702.91,2.20245306]
[1735114736503,0.28421202,703.7,702.92,1.06445306]
[1735114737513,0.28421202,703.7,702.95,1.06445306]
[1735114739615,0.28421202,703.7,702.93,1.06445306]
[1735114740716,0.28421202,703.7,702.94,1.06445306]
[1735114741314,0.28421202,703.7,702.96,1.06445306]
[1735114742816,0.28421202,703.7,703.0,1.06445306]
[1735114743818,0.28421202,703.7,703.06,1.06445306]
[1735114744919,0.28421202,703.7,703.08,1.06445306]
[1735114746320,0.28421202,703.7,703.09,1.06445306]
[1735114747614,0.28421202,703.7,703.12,1.06445306]
[1735114748519,0.28421202,703.7,703.14,1.06445306]
[1735114749523,0.28421202,703.7,703.21,1.06445306]
[1735114750622,0.28421202,703.7,703.22,1.06445306]
[1735114753025,0.28421202,703.7,702.92,0.77892193]
[1735114753026,0.28421202,703.7,703.2,1.06445306]
[1735114754228,0.28421202,703.7,703.22,1.06445306]
[1735114756328,0.28421202,703.7,703.24,1.06445306]
[1735114757735,0.28421202,703.7,703.23,1.06445306]
[1735114758827,0.28421202,703.7,703.24,1.06445306]
[1735114760031,0.28421202,703.7,703.26,1.06445306]
[1735114761831,0.28421202,703.7,703.27,1.06445306]
[1735114762834,0.28421202,703.7,703.28,1.06445306]
[1735114763632,0.28421202,703.7,702.92,0.77892193]
[1735114763633,0.28421202,703.7,703.29,1.06445306]
[1735114764526,0.28421202,703.7,703.3,1.098]
[1735114774142,1.06419135,704.53,703.3,1.098]
[1735114774337,0.28388525,704.51,703.3,1.098]
[1735114774544,0.26126854,704.5,703.3,1.098]
[1735114774941,0.28389734,704.48,703.3,1.098]
[1735114775141,0.26126854,704.47,703.3,1.098]
[1735114775339,0.28390943,704.45,703.3,1.098]
[1735114775644,0.26126854,704.44,703.3,1.098]
[1735114775846,0.28392152,704.42,703.3,1.098]
[1735114776038,0.26126854,704.41,703.3,1.098]
[1735114776241,0.28393361,704.39,703.3,1.098]
[1735114776446,0.26126854,704.38,703.22,1.06445306]
[1735114776648,0.2839457,704.36,703.22,1.06445306]
[1735114776941,0.26126854,704.35,703.22,1.06445306]
[1735114777146,0.2839578,704.33,703.21,1.06445306]
[1735114777441,0.26126854,704.32,703.21,1.06445306]
[1735114777646,0.28396989,704.3,703.22,0.925]
[1735114778046,0.26127366,704.29,703.22,0.925]
[1735114778448,0.28398199,704.27,703.22,0.925]
[1735114778746,0.26127366,704.26,703.22,0.925]
[1735114778946,0.28399409,704.24,703.22,0.925]
[1735114779142,0.26127366,704.23,703.22,0.925]
[1735114779347,0.28400619,704.21,703.22,0.925]
[1735114779542,0.26127366,704.2,703.22,0.925]
[1735114779849,0.28400619,704.21,703.22,0.925]
[1735114779850,0.28401425,704.19,703.22,0.925]
[1735114792853,0.26129185,704.18,703.22,0.925]
[1735114794460,0.28401425,704.19,703.22,0.925]
[1735114794761,0.26129887,704.18,703.22,0.925]
[1735114795460,0.28402635,704.16,703.22,0.925]
[1735114795763,0.26129887,704.15,703.22,0.925]
[1735114796059,0.28403845,704.13,703.22,0.925]
[1735114796259,0.26129887,704.12,703.22,0.925]
[1735114796458,0.28404652,704.11,703.22,0.925]
[1735114796655,0.26129887,704.1,703.22,0.925]
[1735114796856,0.28405459,704.09,703.22,0.925]
[1735114800863,0.28405459,704.09,703.13,1.06445306]
[1735114801062,0.28405459,704.09,703.15,1.06445306]
[1735114801961,0.28405459,704.09,703.16,1.043]
[1735114802764,0.26130407,704.08,703.16,1.043]
[1735114802964,0.26130407,704.08,703.16,2.10745306]
[1735114803365,0.28405459,704.09,703.16,2.10745306]
[1735114803767,0.28405459,704.09,703.16,1.043]
[1735114827376,0.26131281,704.08,703.16,1.043]
[1735114827879,0.26131281,704.08,703.12,1.06445306]
[1735114827880,0.28406669,704.06,703.12,1.06445306]
[1735114828079,0.26131281,704.05,703.12,1.06445306]
[1735114828580,0.26131281,704.05,703.2,1.06445306]
[1735114828974,0.28407476,704.04,703.21,0.823]
[1735114829178,0.26131281,704.03,703.21,0.823]
[1735114829573,0.26131664,704.02,703.21,0.823]
[1735114829778,0.26131664,704.01,703.21,0.823]
[1735114829979,0.26131664,704.0,703.21,0.823]
[1735114830179,0.26131664,703.99,703.21,0.823]
[1735114830378,0.28407476,704.04,703.21,0.823]
[1735114830574,0.26132014,704.03,703.21,0.823]
[1735114831480,0.28407476,704.04,703.21,0.823]
[1735114831982,0.26138351,704.03,703.21,0.823]
[1735114832182,0.28407476,704.04,703.21,0.823]
[1735114832479,0.26138724,704.03,703.21,0.823]
[1735114832979,0.28407476,704.04,703.21,0.823]
[1735114835778,0.26138005,704.03,703.21,0.823]
[1735114837878,0.28407476,704.04,703.21,0.823]
[1735114838081,0.26139182,704.03,703.21,0.823]
[1735114838682,0.28407476,704.04,703.21,0.823]
[1735114838984,0.26139177,704.03,703.21,0.823]
[1735114840788,0.28408687,704.01,703.21,0.823]
[1735114840989,0.26138696,704.0,703.21,0.823]
[1735114841183,0.28409494,703.99,703.21,0.823]
[1735114841383,0.26138696,703.98,703.21,0.823]
[1735114841683,0.28410301,703.97,703.21,0.823]
[1735114841886,0.26138696,703.96,703.21,0.823]
[1735114842488,0.28411108,703.95,703.21,0.823]
[1735114842786,0.26138696,703.94,703.21,0.823]
[1735114842990,0.28411915,703.93,703.21,0.823]
[1735114843191,0.26138696,703.92,703.21,0.823]
[1735114843692,0.26138396,703.91,703.21,0.81012303]
[1735114843893,0.26138396,703.9,703.21,0.81012303]
[1735114844187,0.26138396,703.89,703.21,0.81012303]
[1735114844392,0.26138396,703.88,703.21,0.81012303]
[1735114844588,0.26138396,703.87,703.21,0.81012303]
[1735114844790,0.26138396,703.86,703.21,0.81012303]
[1735114844993,0.26138396,703.85,703.21,0.81012303]
[1735114845192,0.28411915,703.93,703.21,0.81012303]
[1735114845393,0.26139087,703.92,703.21,0.81012303]
[1735114845597,0.28412723,703.91,703.21,0.81012303]
[1735114845893,0.26139087,703.9,703.21,0.81012303]
[1735114846489,0.54552293,703.89,703.21,0.81012303]
[1735114846694,0.54552697,703.88,703.21,0.81012303]
[1735114846990,0.545531,703.87,703.21,0.81012303]
[1735114847194,0.54553504,703.86,703.21,0.81012303]
[1735114847494,0.54553908,703.85,703.21,0.81012303]
[1735114847695,0.28415548,703.84,703.21,0.81012303]
[1735114850396,0.26138704,703.83,703.21,0.81012303]
[1735114850598,0.28416356,703.82,703.21,0.81012303]
[1735114852896,0.26138865,703.81,703.21,0.81012303]
[1735114853096,0.28417163,703.8,703.21,0.81012303]
[1735114858302,0.28417163,703.8,702.78,1.06445306]
[1735114858502,0.28417163,703.8,702.27,1.27734367]
[1735114858503,0.28417163,703.8,702.76,1.06445306]
[1735114860504,0.28417163,703.8,702.79,1.06445306]
[1735114861399,0.28417163,703.8,702.8,1.07]
[1735114872405,0.26142931,703.79,702.8,1.07]
[1735114872613,0.28418375,703.77,702.8,1.07]
[1735114873914,0.28418375,703.77,702.81,1.06445306]
[1735114874914,0.28418375,703.77,702.83,1.06445306]
[1735114876612,0.28418375,703.77,702.84,0.963]
[1735114880019,0.28418375,703.77,702.9,1.06445306]
[1735114881322,0.28418375,703.77,703.05,1.06445306]
[1735114882520,0.28418375,703.77,702.98,1.06445306]
[1735114883415,0.28418375,703.77,702.97,1.06445306]
[1735114884722,0.28418375,703.77,702.96,1.06445306]
[1735114885916,0.28418375,703.77,702.93,1.06445306]
[1735114886621,0.28418375,703.77,702.9,1.06445306]
[1735114887818,0.28418375,703.77,702.87,1.06445306]
[1735114889624,0.28418375,703.77,702.86,1.06445306]
[1735114889824,0.28418375,703.77,702.87,0.952]
[1735114907734,0.28418375,703.77,702.91,1.06445306]
[1735114909038,0.28418375,703.77,703.0,1.06445306]
[1735114910338,0.28418375,703.77,703.05,1.06445306]
[1735114911038,0.28418375,703.77,703.06,1.06445306]
[1735114912939,0.28418375,703.77,703.09,1.06445306]
[1735114913844,0.28418375,703.77,702.87,2.01645306]
[1735114913845,0.28418375,703.77,703.11,1.06445306]
[1735114914643,0.28418375,703.77,703.14,1.06445306]
[1735114916046,0.28418375,703.77,703.13,1.06445306]
[1735114917041,0.28418375,703.77,703.14,1.04]
[1735114917448,0.28418375,703.77,703.14,2.10445306]
[1735114918352,0.28418375,703.77,703.15,1.06445306]
[1735114919351,0.28418375,703.77,703.16,1.06445306]
[1735114921653,0.28418375,703.77,703.17,1.06445306]
[1735114924958,0.28418375,703.77,703.16,1.06445306]
[1735114927060,0.28418375,703.77,703.14,1.04]
[1735114928160,0.28418375,703.77,703.08,1.06445306]
[1735114929068,0.28418375,703.77,703.1,1.06445306]
[1735114929255,0.28418375,703.77,703.11,1.053]
[1735114943471,0.28418375,703.77,703.18,1.06445306]
[1735114944775,0.28418375,703.77,703.19,1.06445306]
[1735114945881,0.28418375,703.77,703.17,1.06445306]
[1735114947175,0.28418375,703.77,703.11,1.053]
[1735114947176,0.28418375,703.77,703.14,1.06445306]
[1735114947376,1.06419135,704.75,703.14,1.06445306]
[1735114947577,0.28379663,704.73,703.14,1.06445306]
[1735114947778,0.26123175,704.72,703.14,1.06445306]
[1735114948281,0.26123175,704.72,703.21,1.06445306]
[1735114949084,0.26123175,704.72,703.15,1.06445306]
[1735114950185,0.26123175,704.72,703.18,1.06445306]
[1735114951086,0.26123175,704.72,703.11,2.11745306]
[1735114951384,0.26123175,704.72,703.11,1.06445306]
[1735114952082,0.28380871,704.7,703.11,1.06445306]
[1735114952282,0.26123175,704.69,703.13,1.06445306]
[1735114952483,0.26123175,704.69,703.14,1.137]
[1735114952980,0.26124123,704.68,703.14,1.137]
[1735114953182,0.28380871,704.7,703.14,1.137]
[1735114953183,0.26124123,704.67,703.14,1.137]
[1735114953382,0.28380871,704.7,703.14,1.137]
[1735114953383,0.26124123,704.66,703.14,1.137]
[1735114953583,0.26124123,704.65,703.14,1.137]
[1735114953786,0.26124793,704.64,703.14,1.137]
[1735114953981,0.26124793,704.63,703.14,1.137]
[1735114954185,0.26124793,704.62,703.14,1.137]
[1735114954383,0.26124793,704.61,703.14,1.137]
[1735114954591,0.26124793,704.6,703.14,1.137]
[1735114954785,0.26124793,704.59,703.14,1.137]
[1735114954983,0.26124793,704.58,703.14,1.137]
[1735114955188,0.26124793,704.57,703.14,1.137]
[1735114955384,0.26124793,704.56,703.14,1.137]
[1735114955590,0.28380871,704.7,703.14,1.137]
[1735114955792,0.26123711,704.69,703.14,1.137]
[1735114957190,0.28382079,704.67,703.14,1.137]
[1735114957491,0.26123711,704.66,703.14,1.137]
[1735114958492,0.26124446,704.65,703.14,1.137]
[1735114958684,0.26124446,704.64,703.14,1.137]
[1735114958887,0.26124446,704.63,703.14,1.137]
[1735114959089,0.26124446,704.62,703.14,1.137]
[1735114959292,0.26124446,704.61,703.14,1.137]
[1735114959494,0.26124446,704.6,703.14,1.137]
[1735114959688,0.26124446,704.59,703.14,1.137]
[1735114959892,0.26124446,704.58,703.14,1.137]
[1735114960092,0.26124446,704.57,703.14,1.137]
[1735114960288,0.26124446,704.56,703.14,1.137]
[1735114960488,0.26124446,704.55,703.14,1.137]
[1735114960692,0.28382079,704.67,703.14,1.137]
[1735114960693,0.26124446,704.54,703.14,1.137]
[1735114960893,0.26124446,704.53,703.14,1.137]
[1735114961094,0.28382079,704.67,703.14,1.137]
[1735114961393,0.26129383,704.66,703.14,1.137]
[1735114961996,0.26129358,704.65,703.14,1.137]
[1735114962198,0.26129358,704.64,703.14,1.137]
[1735114962497,0.26129358,704.63,703.14,1.137]
[1735114962798,0.26129358,704.62,703.14,1.137]
[1735114962999,0.26129358,704.61,703.14,1.137]
[1735114963199,0.26129358,704.6,703.14,1.137]
[1735114963395,0.26129358,704.59,703.14,1.137]
[1735114963600,0.26129358,704.58,703.14,1.137]
[1735114963801,0.26129358,704.57,703.14,1.137]
[1735114964001,0.26129022,704.56,703.14,1.137]
[1735114964198,0.26129022,704.55,703.14,1.137]
[1735114964401,0.26129022,704.54,703.14,1.137]
[1735114964701,0.28382079,704.67,703.14,1.137]
[1735114970206,0.2612736,704.66,703.14,1.137]
[1735114972308,0.26127835,704.65,703.14,1.137]
[1735114972504,0.26127835,704.64,703.14,1.137]
[1735114972709,0.28382079,704.67,703.14,1.137]
[1735114972710,0.26127835,704.63,703.14,1.137]
[1735114973009,0.26127835,704.62,703.14,1.137]
[1735114973211,0.26127835,704.61,703.14,1.137]
[1735114973513,0.26127835,704.6,703.14,1.137]
[1735114973709,0.26127835,704.59,703.14,1.137]
[1735114974010,0.26127835,704.58,703.14,1.137]
[1735114974207,0.26127835,704.57,703.14,1.137]
[1735114974407,0.26127835,704.56,703.14,1.137]
[1735114974608,0.26127835,704.55,703.14,1.137]
[1735114974805,0.26127835,704.54,703.14,1.137]
[1735114975009,0.26127325,704.53,703.14,1.137]
[1735114975211,0.26127325,704.52,703.14,1.137]
[1735114975412,0.26127325,704.51,703.14,1.137]
[1735114975609,0.26127325,704.5,703.14,1.137]
[1735114975809,0.26127325,704.49,703.14,1.137]
[1735114976009,0.28390137,704.47,703.14,1.137]
[1735114976306,0.26127325,704.46,703.14,1.137]
[1735114977411,0.28391346,704.44,703.14,1.137]
[1735114977613,0.26127325,704.43,703.14,1.137]
[1735114977815,0.26127724,704.42,703.14,1.137]
[1735114978013,0.26127724,704.43,703.14,1.137]
[1735114978209,0.26127724,704.42,703.14,1.137]
[1735114978408,0.26127724,704.41,703.14,1.137]
[1735114978714,0.28393361,704.39,703.14,1.137]
[1735114978913,0.26127995,704.38,703.14,1.137]
[1735114979313,0.2839457,704.36,703.14,1.137]
[1735114979511,0.26127995,704.35,703.14,1.137]
[1735114979918,0.2839578,704.33,703.14,1.137]
[1735114980614,0.2839578,704.33,702.99,1.06445306]
[1735114981012,0.2839578,704.33,703.01,1.06445306]
[1735114981814,0.2839578,704.33,703.02,1.09]
[1735114984021,0.2839578,704.33,703.05,1.06445306]
[1735114985917,0.2839578,704.33,703.03,1.06445306]
[1735114987024,0.2839578,704.33,703.02,1.09]
[1735114987224,0.26127479,704.32,703.02,1.09]
[1735114988120,0.2839578,704.33,703.09,1.06445306]
[1735114988321,0.26127209,704.32,703.09,1.06445306]
[1735114989419,0.2839578,704.33,703.09,1.06445306]
[1735114990225,0.2839578,704.33,703.19,1.06445306]
[1735114991425,0.2839578,704.33,703.02,1.09]
[1735114991426,0.2839578,704.33,703.21,1.06445306]
[1735114992226,0.2839578,704.33,703.2,1.06445306]
[1735114993026,0.2839578,704.33,703.22,1.06445306]
[1735114995024,0.2839578,704.33,703.21,1.06445306]